Cogmind - Beta 16 @@@ ROGUE MODE // 2025.11.03 @ 19:43:37 Player: Not_Jesus8 Result: Self-destructed Performance ------------- Evolutions (2) 1000 Regions Visited (5) 1000 Robots Destroyed (21) 105 Value Destroyed (633) 633 Prototype IDs (23) 460 Alien Tech Used (0) 0 Bonus (300) 300 TOTAL SCORE: 3498 Bonus ------- Aligned with FarCom 300 Cogmind --------- Core Integrity 410/550 Matter 300/300 Energy 100/100 System Corruption 0% Temperature Cool (6) Movement Core (400) Ox7 Location -8/Materials Parts ------- > --- POWER (1) -------- (None) > --- PROPULSION (3) --- (None) > --- UTILITY (4) ------ Improved Heat Sink Large Storage Unit > --- WEAPON (3) ------- Pulse Rifle > --- INVENTORY (15) --- Nuclear Core Nuclear Core Nuclear Core Wheel Wheel Medium Matter Pod (100) Signal Interpreter Skeleton Box Small Laser Particle Gun Ion Cannon Mining Laser Peak State ------------ > --- POWER ------------ Light Ion Engine > --- PROPULSION ------- Light Treads > --- UTILITY ---------- Improved Heat Sink Large Storage Unit > --- WEAPON ----------- Medium Laser Pulse Rifle Light Assault Rifle > --- INVENTORY -------- Nuclear Core Nuclear Core Nuclear Core Wheel Wheel Medium Matter Pod Signal Interpreter Skeleton Box Small Laser Mining Laser [Rating: 13] Favorites ----------- Power Ion Engine Engine Ion Engine Propulsion Light Treads Treads Light Treads Utility Large Storage Unit Device Improved Heat Sink Storage Large Storage Unit Protection Light Armor Plating Weapon Medium Laser Energy Gun Medium Laser Ballistic Gun Assault Rifle Build | -11 -10 -10 -10 -9 -8 ------- Run | Yrd Mat Min Exi Min Mat Slots Evolved 4 | . . . . . 4 Power . | . . . . . . Propulsion 1 | . . . . . 1 Utility 2 | . . . . . 2 Weapon 1 | . . . . . 1 Parts Attached 12 | 6 2 . . . 4 Power 2 | 1 . . . . 1 Engine 2 | 1 . . . . 1 Core . | . . . . . . Reactor . | . . . . . . Propulsion 2 | 2 . . . . . Treads 2 | 2 . . . . . Leg . | . . . . . . Wheel . | . . . . . . Hover . | . . . . . . Flight . | . . . . . . Utility 4 | 1 2 . . . 1 Device 1 | . . . . . 1 Storage 2 | 1 1 . . . . Processor . | . . . . . . Hackware . | . . . . . . Protection 1 | . 1 . . . . Artifact . | . . . . . . Weapon 4 | 2 . . . . 2 Energy Gun 2 | 1 . . . . 1 Energy Cannon . | . . . . . . Ballistic Gun 2 | 1 . . . . 1 Ballistic Cannon . | . . . . . . Launcher . | . . . . . . Special Weapon . | . . . . . . Impact Weapon . | . . . . . . Slashing Weapon . | . . . . . . Piercing Weapon . | . . . . . . Special Melee Weapon . | . . . . . . Unidentified Prototypes . | . . . . . . Parts Lost 8 | . . . . 2 6 Power 2 | . . . . 1 1 Propulsion 2 | . . . . . 2 Utility 1 | . . . . 1 . Weapon 3 | . . . . . 3 Highest Loss Streak 4 | . . . . 2 4 To Critical Strikes . | . . . . . . Average Backups 5 | . . 3 6 7 9 Power 1 | . . . 2 3 3 Propulsion . | . . . . . 1 Utility 1 | . . 1 1 1 1 Weapon 1 | . . 2 2 2 2 Tool/Special . | . . . . . . Unused Backups 11 | . . . . . 11 Power 3 | . . . . . 3 Propulsion 2 | . . . . . 2 Utility 2 | . . . . . 2 Weapon 3 | . . . . . 3 Tool/Special 1 | . . . . . 1 Average Slot Usage (%) 82 | . 95 100 100 81 57 Engine 10 | . 14 14 14 5 6 Treads 23 | . 28 28 28 28 13 Device 1 | . . . . . 5 Storage 12 | . 14 14 14 14 9 Protection 7 | . 9 14 14 5 . Energy Gun 13 | . 14 14 14 14 13 Ballistic Gun 12 | . 14 14 14 14 10 Peak Build Rating 13 | 6 7 7 8 8 13 Average Rating 7 | 4 6 7 7 6 10 On Entrance 5 | . 6 7 7 8 6 Avg Prop Armor Cover (%) . | . . . . . . Naked Turns . | . . . . . . Heaviest Build 34 | 14 34 32 32 32 30 Greatest Support 40 | 40 40 40 40 40 40 Greatest Overweight (x) 1 | . . . . . 1 Average Overweight (x) . | . . . . . . Largest Inventory Capacity 15 | 8 15 15 15 15 15 Average Capacity 14 | 6 14 15 15 15 15 Most Carried 12 | . 3 3 7 7 12 Average Carried 5 | . . 3 6 7 9 Final Capacity 15 | 8 15 15 15 15 15 Final Carried 12 | . 3 3 7 7 12 Class Distribution -------------------- 80% | Mutant 19% | Skirmisher Dominant Class ---------------- Mutant | -10/Materials Mutant | -10/Mines Mutant | -10/Exiles Mutant | -9/Mines Skirmisher | -8/Materials Resources | -11 -10 -10 -10 -9 -8 ----------- Run | Yrd Mat Min Exi Min Mat Matter Collected 540 | 190 182 . . 66 102 Remotely . | . . . . . . Salvage Created 714 | . 274 . . 37 403 Parts 42 | . 13 . . 1 28 Haulers Intercepted 2 | . . . . . 2 Recyclers Shooed . | . . . . . . Parts Field Recycled . | . . . . . . Retrieved Matter . | . . . . . . Parts Self-Destructed . | . . . . . . Prevented . | . . . . . . Parts Restored . | . . . . . . Kills | -11 -10 -10 -10 -9 -8 ------- Run | Yrd Mat Min Exi Min Mat Combat Hostiles Destroyed 16 | . 6 . . 2 8 Guns 15 | . 6 . . 2 7 Classes Destroyed 9 | . 2 . . 1 6 Worker 1 | . . . . . 1 Builder 1 | . . . . . 1 Hauler 2 | . . . . . 2 Watcher 1 | . 1 . . . . Swarmer 3 | . . . . . 3 Grunt 9 | . 6 . . . 3 Sentry 1 | . . . . . 1 Demolisher 2 | . . . . 2 . Hunter 1 | . . . . . 1 Best Kill Streak 2 | . 2 . . 2 2 Combat Bots Only 2 | . 2 . . 2 2 Max Kills in Single Turn 2 | . 1 . . 2 1 Gunslinging 1 | . . . . 1 . Exploded . | . . . . . . Melee . | . . . . . . Uniques/NPCs Destroyed . | . . . . . . Combat | -11 -10 -10 -10 -9 -8 -------- Run | Yrd Mat Min Exi Min Mat Hostile Shots Fired 100 | . 32 . . 2 66 Missed 27 | . 9 . . . 18 Hits 73 | . 23 . . 2 48 Projectile 73 | . 23 . . 2 48 AOE 2 | . . . . 2 . Critical Strikes 2 | . . . . . 2 Damage Taken 1218 | . 280 . . 353 585 Core 290 | . 54 . . 96 140 Absorbed by Shields . | . . . . . . Core Remaining (%) 70 | 100 . . . 40 . Volleys Fired 64 | . 22 . . 1 41 Largest 3 | . 2 . . 2 3 Hottest 133 | . 70 . . 70 133 Shots Fired 147 | . 44 . . 2 101 Gun 147 | . 44 . . 2 101 Cannon . | . . . . . . Launcher . | . . . . . . Special . | . . . . . . Kinetic 72 | . 22 . . 1 49 Thermal 75 | . 22 . . 1 52 Explosive . | . . . . . . Electromagnetic . | . . . . . . Robot Hit Streak 13 | . 10 . . 6 13 Robot Miss Streak 3 | . 2 . . . 3 Penetration Max . | . . . . . . Secondary Targets 2 | . 1 . . 1 . Max Gunslinging Chain 1 | . 1 . . 1 . Shots Hit Robots 103 | . 34 . . 2 67 Core Hits 44 | . 15 . . 2 27 Critical Kills . | . . . . . . Critical Parts Destroyed . | . . . . . . Critical Strikes 3 | . 1 . . . 2 Burn 3 | . 1 . . . 2 Melee Attacks . | . . . . . . Impact . | . . . . . . Slashing . | . . . . . . Piercing . | . . . . . . Sneak Attacks . | . . . . . . Combat Hostiles . | . . . . . . Follow-up Attacks . | . . . . . . Damage Inflicted 1279 | . 446 . . 30 803 Guns 1235 | . 426 . . 26 783 Cannons . | . . . . . . Explosions . | . . . . . . Melee . | . . . . . . Ramming 44 | . 20 . . 4 20 Kinetic 478 | . 203 . . 14 261 Thermal 757 | . 223 . . 12 522 Explosive . | . . . . . . Electromagnetic . | . . . . . . Impact . | . . . . . . Slashing . | . . . . . . Piercing . | . . . . . . Highest Corruption 4 | . . . . 4 . Average Corruption 4 | . . . . 4 . Corruption Purged . | . . . . . . Corruption Blocked . | . . . . . . Effects 2 | . . . . 2 . Matter Fused 1 | . . . . 1 . Heat Flow Errors 1 | . . . . 1 . Overload Shots . | . . . . . . Overflow Damage . | . . . . . . Projectiles . | . . . . . . Explosions . | . . . . . . Melee . | . . . . . . Knockbacks . | . . . . . . Impact . | . . . . . . Kinetic . | . . . . . . Secondary . | . . . . . . Self-Inflicted Damage . | . . . . . . Shots . | . . . . . . Rammed 7 | . 3 . . 1 3 Targets Rammed 9 | . 3 . . 1 5 Kicked . | . . . . . . Crushed 2 | . . . . . 2 Highest Temperature 264 | . 186 . . 264 81 Average Temperature 53 | . 70 . . 108 21 Received Heat Transfer 336 | . 156 . . . 180 Siege Activations . | . . . . . . Martial Activations . | . . . . . . Shielding Activations . | . . . . . . Robots Disrupted . | . . . . . . Combat Hostiles . | . . . . . . Robots Corrupted . | . . . . . . Combat Hostiles . | . . . . . . Parts Fried . | . . . . . . Impact Corruptions . | . . . . . . Robots Melted 1 | . . . . . 1 Combat Hostiles 1 | . . . . . 1 Parts Melted 4 | . 1 . . . 3 Heat Transferred 2331 | . 740 . . 37 1554 Parts Sabotaged . | . . . . . . Parts Stolen . | . . . . . . Parts Stripped . | . . . . . . Power Chain Reactions . | . . . . . . Alert | -11 -10 -10 -10 -9 -8 ------- Run | Yrd Mat Min Exi Min Mat Maximum Alert Level . | . . . . . . Low Security (%) 100 | 100 100 100 . 100 100 Level 1 . | . . . . . . Level 2 . | . . . . . . Level 3 . | . . . . . . Level 4 . | . . . . . . Level 5 . | . . . . . . High Security . | . . . . . . Max Security . | . . . . . . Peak Influence 94 | . 94 . . 50 65 Initial . | . . . . . . Average 23 | . 39 . . 3 19 Influence Increases 545 | . 228 . . 50 267 Destroy 0b10 Robot/C 320 | . 120 . . 40 160 Destroy 0b10 Robot/NC 25 | . 5 . . . 20 Destroy Leader 76 | . 32 . . 10 34 Successful Hack 34 | . 26 . . . 8 Select Force Hacks 60 | . 30 . . . 30 Lose Combat Pursuer 30 | . 15 . . . 15 Influence Decreases 540 | . 228 . . 50 262 Time Decay 460 | . 228 . . 30 202 Lost Part 80 | . . . . 20 60 Squads Dispatched 5 | . 2 . . . 3 Investigation 4 | . 2 . . . 2 Extermination . | . . . . . . Reinforcement 1 | . . . . . 1 Assault . | . . . . . . Garrison . | . . . . . . Intercept . | . . . . . . Searches Triggered . | . . . . . . Construction Impeded . | . . . . . . Haulers Reinforced . | . . . . . . Active Scanning Responses . | . . . . . . Cargo Convoy Interrupts . | . . . . . . Stealth | -11 -10 -10 -10 -9 -8 --------- Run | Yrd Mat Min Exi Min Mat Distress Signals . | . . . . . . Communications Jammed . | . . . . . . Distress Signals . | . . . . . . Times Spotted 27 | . 9 . . 3 15 Peak Tracking Total 7 | . 2 . . 2 7 Tactical Retreats 2 | . 1 . . . 1 Traps | -11 -10 -10 -10 -9 -8 ------- Run | Yrd Mat Min Exi Min Mat Traps Triggered 2 | . 1 . . . 1 Indirectly . | . . . . . . Trap Hack Attempts . | . . . . . . Triggered . | . . . . . . Disarmed . | . . . . . . Reprogrammed . | . . . . . . Reused . | . . . . . . Traps Extracted . | . . . . . . Installed . | . . . . . . Triggered . | . . . . . . Machines | -11 -10 -10 -10 -9 -8 ---------- Run | Yrd Mat Min Exi Min Mat Machines Disabled . | . . . . . . Max in Single Turn . | . . . . . . Machines Repaired . | . . . . . . Machines Dismantled . | . . . . . . Machines Sabotaged . | . . . . . . Overloaded Fab Kills . | . . . . . . Hacking | -11 -10 -10 -10 -9 -8 --------- Run | Yrd Mat Min Exi Min Mat Machines Accessed 11 | . 6 . 1 . 4 Terminals 8 | . 5 . . . 3 Fabricators . | . . . . . . Repair Stations . | . . . . . . Recycling Units 2 | . 1 . . . 1 Scanalyzers . | . . . . . . Garrison Access . | . . . . . . Total Hacks 30 | . 17 . 1 . 12 Successful 15 | . 10 . 1 . 4 Failed 15 | . 7 . . . 8 Catastrophic 2 | . . . . . 2 Database Lockouts . | . . . . . . Manual 30 | . 17 . 1 . 12 Terminals 24 | . 15 . . . 9 Fabricators . | . . . . . . Repair Stations . | . . . . . . Recycling Units 5 | . 2 . . . 3 Scanalyzers . | . . . . . . Garrison Access . | . . . . . . Terminal Hacks 1 | . . . 1 . . Proto ID Catalog 1 | . . . 1 . . Fabricator Hacks . | . . . . . . Repair Station Hacks . | . . . . . . Recycling Unit Hacks . | . . . . . . Scanalyzer . | . . . . . . Garrison Access Hacks . | . . . . . . Unauthorized Hacks 14 | . 10 . . . 4 Terminals 11 | . 9 . . . 2 Botnet 4 | . 3 . . . 1 Disrupt 2 | . 1 . . . 1 Skim 5 | . 5 . . . . Fabricators . | . . . . . . Repair Stations . | . . . . . . Recycling Units 3 | . 1 . . . 2 Recyclers 1 | . . . . . 1 Tunnel 2 | . 1 . . . 1 Scanalyzers . | . . . . . . Garrison Access . | . . . . . . Data Cores Recovered . | . . . . . . Used . | . . . . . . Hacking Detections 7 | . 4 . . . 3 Full Trace Events 3 | . . . . . 3 Feedback Events . | . . . . . . Feedback Blocked . | . . . . . . Robot Schematics Acquired . | . . . . . . Robots Built . | . . . . . . Authchips . | . . . . . . Time . | . . . . . . Total Robot Build Rating . | . . . . . . Part Schematics Acquired . | . . . . . . Parts Built . | . . . . . . Authchips . | . . . . . . Time . | . . . . . . Total Part Build Rating . | . . . . . . Part Studies Acquired . | . . . . . . Parts Repaired . | . . . . . . Time . | . . . . . . Parts Recycled . | . . . . . . Recycled Matter . | . . . . . . Retrieved Matter . | . . . . . . Retrieved Components . | . . . . . . Parts Scanalyzed . | . . . . . . Part Schematics Acquired . | . . . . . . Parts Damaged . | . . . . . . Bothacking | -11 -10 -10 -10 -9 -8 ------------ Run | Yrd Mat Min Exi Min Mat Used RIF Installer . | . . . . . . Robots Hacked . | . . . . . . Non-combat . | . . . . . . Combat . | . . . . . . Robot Hacks Applied . | . . . . . . Relay Couplers Released . | . . . . . . Fabnet Peak Effective % . | . . . . . . Robots Rewired . | . . . . . . Allies Hacked . | . . . . . . Hacks Repelled . | . . . . . . Allies | -11 -10 -10 -10 -9 -8 -------- Run | Yrd Mat Min Exi Min Mat Total Allies . | . . . . . . Largest Group . | . . . . . . Highest-Rated Group . | . . . . . . Highest-Rated Ally . | . . . . . . Total Orders . | . . . . . . Ally Attacks . | . . . . . . Total Damage . | . . . . . . Kills . | . . . . . . Allies Corrupted . | . . . . . . Allies Melted . | . . . . . . Intel | -11 -10 -10 -10 -9 -8 ------- Run | Yrd Mat Min Exi Min Mat Active Infowar (turns) . | . . . . . . Robot Analysis Total . | . . . . . . Derelict Logs Recovered 1 | . . . . 1 . Drone Launches . | . . . . . . Drone Recoveries . | . . . . . . Exploration | -11 -10 -10 -10 -9 -8 ------------- Run | Yrd Mat Min Exi Min Mat Turns Passed 1845 | 73 575 64 339 211 583 Spaces Moved 910 | 43 304 41 210 130 182 Core 3 | 3 . . . . . Treads 907 | 40 304 41 210 130 182 Legs . | . . . . . . Wheels . | . . . . . . Hover . | . . . . . . Flight . | . . . . . . Fastest Speed 50 | 50 160 160 160 160 160 Average Speed 166 | 152 160 160 160 160 194 Slowest Speed 240 | 160 160 160 160 160 240 Overloaded Moves . | . . . . . . Propulsion Burnouts . | . . . . . . Robots Hopped . | . . . . . . Potential Cave-ins . | . . . . . . Cave-ins Triggered 1 | . . . . 1 . Exploration Rate (%) 29 | 5 38 21 60 39 15 Regions Visited 5 Branch Regions 3 Pre-discovered Areas 2 | . 1 . . . 1 Known Exits Taken . | . . . . . . Unknown Exits Taken 5 | 1 1 1 1 1 . Scrap Searched . | . . . . . . Spaces Dug . | . . . . . . Terrain Destroyed . | . . . . . . Melee . | . . . . . . Projectile . | . . . . . . AOE . | . . . . . . Terrain Rammed . | . . . . . . Walls Destroyed . | . . . . . . Machines Disabled . | . . . . . . Actions | -11 -10 -10 -10 -9 -8 --------- Run | Yrd Mat Min Exi Min Mat Total 1105 | 48 346 40 213 131 327 Wait 101 | . 12 . . . 89 Move 905 | 42 303 40 209 129 182 Hop . | . . . . . . Pick Up 12 | . 3 . 4 . 5 Fast Attach 13 | 6 2 . . . 5 Attach . | . . . . . . Detach . | . . . . . . Swap . | . . . . . . Drop 1 | . 1 . . . . Fire 64 | . 22 . . 1 41 Melee . | . . . . . . Ram . | . . . . . . Kick . | . . . . . . Crush 9 | . 3 . . 1 5 Escape Stasis . | . . . . . . Rewire . | . . . . . . Trap . | . . . . . . Miscellaneous . | . . . . . . Route ------- -11/Scrapyard -10/Materials (discovered 2 exits: [*Mat] / [*Min]) -10/Mines -10/Exiles -9/Mines -8/Materials (discovered 1 exit: Fac) History --------- Turn | Location | Event 3 | -11/Scrapyard | Discovered new exit (range 16) 74 | -11/Scrapyard | Entered Materials 213 | -10/Materials | Discovered new exit (range 6) 311 | -10/Materials | Build established: Mutant 337 | -10/Materials | Discovered new exit (range 15) 620 | -10/Materials | Learned Storage terminal intel 649 | -10/Materials | Entered Mines 705 | -10/Mines | Deemed a non-threat by the Exiles lab entrance 707 | -10/Mines | Discovered new exit (range 5) 713 | -10/Mines | Entered Exiles 758 | -10/Exiles | Met 8R-AWN 785 | -10/Exiles | Met EX-HEX 830 | -10/Exiles | Met EX-BIN 848 | -10/Exiles | Aligned with FarCom system 849 | -10/Exiles | Given EX-Vault access code 886 | -10/Exiles | Opened EX-Vault 902 | -10/Exiles | Found Skeleton Box 935 | -10/Exiles | Warned to stay clear of 0b10 Research branches 981 | -10/Exiles | Met EX-DEC 1037 | -10/Exiles | Discovered new exit (range 10) 1052 | -10/Exiles | Left Exiles lab with Skeleton Box 1052 | -10/Exiles | Entered Mines 1053 | -9/Mines | Assembled infested the area 1058 | -9/Mines | Assisted by a Guerilla fighting off Assembled 1128 | -9/Mines | Crushed by falling debris 1128 | -9/Mines | Core integrity fell below 50% 1191 | -9/Mines | Learned 8 Materials zone layouts 1246 | -9/Mines | Discovered new exit (range 13) 1263 | -9/Mines | Entered Materials 1263 | -8/Materials | Evolved 4 slots: Propulsion x1, Utility x2, Weapon x1 1264 | -8/Materials | Identified exit to Factory 1846 | -8/Materials | Self-destructed Last Messages --------------- 01759_ Acquired 6 matter. 01817_ Connecting with Terminal... >>Trojan(Botnet) Trojan loaded successfully. Testing... Terminal linked with 0 systems. Awaiting botnet instructions. 01817_ Connecting with Terminal... 01822_ ALERT: Hostiles spotted, dispatching reinforcements to Terminal M006. 01832_ Y-45 Defender destroyed. 01835_ Acquired 1 matter. 01838_ Critical hit (Burn: +37). 01839_ Acquired 1 matter. 01840_ Med. Laser destroyed. 01841_ S-10 Pest destroyed. 01842_ Acquired 1 matter. 01843_ Lgt. Ion Engine destroyed. 01844_ Lgt. Treads destroyed. 01845_ Lgt. Assault Rifle destroyed. Map ----- +----------------------------------------------------+ | ????????????????????????# """## """ """ #?? | | ????????????????????????# """## """ """ #?? | | ????????????????????????# """## """ """ #?? | | ????????????????????????# """## #?? | | ????????????????????????# """## #?? | | ????????????????????????# ## #?? | | ????????????????????????# ## "T" #?? | | ????????????????????????########### #?? | | ????????????????????????????# ######+#####?? | | ????????????????????????????# #???# #?????? | | ????????????????????????????#" #???# #?????? | | ????????????????????????????#T #???# ####### | | ????????########????????????#" ##??# # # | | ????????# #???????###### #??# # # | | ????????# #########* ##+####### # " # | | ????????# """ ##! # # "" # | | ????????# """ ## """ # # "" # | | ????????# """ ## """ # ##+####### # """ # | | ?????????? ?# """ ## ## ## # "" # | | #####+######+#### ## s## ""## # """ # | | % # """ ## s## T"## # """ # | | +w """ ## ## ""## + """ # | | # """ ## ## ## # " # | | ############# # # ######+### # # | | #??????# # """ +[!s ####### | | #??????# # """ #Y@T # # | | """ #??????# # """ #=!%[#######+## # # | | """ ######## # ####### # # # | | """ " % ###########??# T # # # | | ######## #????? #??# # # # | | "T"" #??????# #????? #??# """"" # # """ # | | """" #??????# #????? #??# """"" # + """ # | | ######??????# #????? #??# """"" # # """ # | | ????????????# #?????#####??# """"" # # """ # | | ????????????# ?????#??????# """"" #### """ # | | ????????????# ##????#?????## """"" #??# # | | ????????????? #?????#?????#Y """"" #??# # | | ?????????????#+##?????#?????## #??####### | | ??????????????????????######?#########????????? | | ?????????????????????? #??????????????????? | | ?????????????????????? #??????????????????? | | ?????????????????????? #??????????????????? | | ?????????????????????? #??????????????????? | | ?????????????????????? #??????????????????? | | ?????????????????????? #??????????????????? | | ??????????????????????######??????????????????? | | | | | | | | | +----------------------------------------------------+ Best States ------------- Heat Dissipation 45 Energy Generation 10 Energy Capacity 250 Matter Stores 300 Matter Capacity 300 Sight Range 16 Terrain Scan Density 10 Armor Coverage 150 Evasion (%) 40 Recoil Reduction 2 Item Schematics ----------------- None Robot Schematics ------------------ None Fabricated ------------ Nothing Repaired ---------- Nothing Studied --------- None Alien Tech Used ----------------- None Achievements -------------- None Challenges ------------ None Game ------ Seed AluminumPhysicsBeamcaster Manual? 0 Play Time 00:23:14 Cumulative 30.6 hours Start 2025.11.03 @ 19:11:25 End 2025.11.03 @ 19:43:37 Sessions 1 Manual Loads 0 Difficulty Rogue Special Mode None Game No. 67 Rogue 67 Adventurer 0 Explorer 0 Win Type - Total 2 Types 2/0/0/0/0/0/0/0/0/0 Lore% 39 Gallery% 31 Achievement% 30 Wizard Run 0 Options --------- Layout 1 ASCII 0 Keyboard 1 Movement Arrows Keybinds 0 Fullscreen 1 Font 16/SmallcapsGlow Map View 50x54 Zoom Use 17% Tactical HUD 1 Map Filters NONE Filters NONE Steam 1 RUN: 275601d9-3171-4c86-9fbb-74ddbf72c741